{"text_format":"3","workbook":"xlsx","n_sheets":4,"sheets":["Список покупок","Розподіл бюджету","Список справ","Спільний доступ"],"not_rendered":{"charts":2,"images":2,"defined_names":12},"read":"whole","date_system":"1900"}

{"sheet":"Список покупок","index":0,"n_rows":25,"n_cols":8,"rows_kept":25,"merged":[[2,1,2,7],[3,1,3,2],[4,4,6,7]]}
[null,"Знову до школи","Планувальник"]
[]
[null,"Стежте за тим, скільки всього ви вже придбали та скільки з бюджету витратили за категоріями відповідно до сум, введених на аркуші \"Розподіл бюджету\"."]
[null,"Зведення бюджету",null,null,{"$f":"\"Перебіг придбання: (\"&COUNTIFS(Контрольний_список[Придбано], \">0\")&\" з \"&COUNTIFS(Контрольний_список[Придбати], \">0\")&\")\"","v":"Перебіг придбання: (1 з 6)"}]
[null,"Бюджет",{"v":1500,"d":"1,500.00₴"},null,{"$f":"IFERROR(COUNTIFS(Контрольний_список[Придбати],\">0\",Контрольний_список[Придбано],\">0\")/СумаПозиційЯкіПотрібноПридбати,0)","v":{"v":0.16666666666666666,"d":"17%"}}]
[null,"Підсумок списку покупок",{"$f":"IFERROR(SUM(ПідсумокКонтрольногоСписку), \"\")","v":{"v":365,"d":"365.00₴"}}]
[null,"Залишок коштів",{"$f":"IFERROR(C5-C6, \"\")","v":{"v":1135,"d":"1,135.00₴"}}]
[null,"Список покупок"]
[null,"Позиція","Категорія","К-сть","Придбати","Вартість","Придбано","Загальна вартість"]
[null,"Математика","Підручники",1,1,{"v":55,"d":"55.00₴"},1,{"$f":"IFERROR(Контрольний_список[К-сть]*Контрольний_список[Вартість], \"\")","v":{"v":55,"d":"55.00₴"}}]
[null,"Українська мова","Підручники",1,1,null,null,{"$f":"IFERROR(Контрольний_список[К-сть]*Контрольний_список[Вартість], \"\")","v":0}]
[null,"Рюкзак","Приладдя",1,null,{"v":30,"d":"30.00₴"},null,{"$f":"IFERROR(Контрольний_список[К-сть]*Контрольний_список[Вартість], \"\")","v":{"v":30,"d":"30.00₴"}}]
[null,"Калькулятор","Приладдя",1,{"$nulls":3},{"$f":"IFERROR(Контрольний_список[К-сть]*Контрольний_список[Вартість], \"\")","v":0}]
[null,"Маркери","Приладдя",3,{"$nulls":3},{"$f":"IFERROR(Контрольний_список[К-сть]*Контрольний_список[Вартість], \"\")","v":0}]
[null,"Форма","Одяг",2,1,{"v":100,"d":"100.00₴"},null,{"$f":"IFERROR(Контрольний_список[К-сть]*Контрольний_список[Вартість], \"\")","v":{"v":200,"d":"200.00₴"}}]
[null,"Сорочка, на ґудзиках","Одяг",4,{"$nulls":3},{"$f":"IFERROR(Контрольний_список[К-сть]*Контрольний_список[Вартість], \"\")","v":0}]
[null,"Сорочка, футболки","Одяг",5,{"$nulls":3},{"$f":"IFERROR(Контрольний_список[К-сть]*Контрольний_список[Вартість], \"\")","v":0}]
[null,"Шорти","Одяг",2,{"$nulls":3},{"$f":"IFERROR(Контрольний_список[К-сть]*Контрольний_список[Вартість], \"\")","v":0}]
[null,"Кросівки","Одяг",2,1,null,null,{"$f":"IFERROR(Контрольний_список[К-сть]*Контрольний_список[Вартість], \"\")","v":0}]
[null,"Шкарпетки","Одяг",10,{"$nulls":3},{"$f":"IFERROR(Контрольний_список[К-сть]*Контрольний_список[Вартість], \"\")","v":0}]
[null,"Весняна куртка","Одяг",1,1,{"v":80,"d":"80.00₴"},null,{"$f":"IFERROR(Контрольний_список[К-сть]*Контрольний_список[Вартість], \"\")","v":{"v":80,"d":"80.00₴"}}]
[null,"Светри","Одяг",1,{"$nulls":3},{"$f":"IFERROR(Контрольний_список[К-сть]*Контрольний_список[Вартість], \"\")","v":0}]
[null,"Кофти","Одяг",1,{"$nulls":3},{"$f":"IFERROR(Контрольний_список[К-сть]*Контрольний_список[Вартість], \"\")","v":0}]
[null,"Білизна","Одяг",10,{"$nulls":3},{"$f":"IFERROR(Контрольний_список[К-сть]*Контрольний_список[Вартість], \"\")","v":0}]
[null,"Зимова куртка","Одяг",1,1,null,null,{"$f":"IFERROR(Контрольний_список[К-сть]*Контрольний_список[Вартість], \"\")","v":0}]

{"sheet":"Розподіл бюджету","index":1,"n_rows":6,"n_cols":3,"rows_kept":6}
[null,"Розподіл бюджету"]
[null,"Додайте категорії та обсяги в бюджеті, щоб відстежувати їх у списку покупок."]
[null,"Категорія","Загальна вартість"]
[null,"Одяг",{"$f":"IFERROR(SUMIFS(Контрольний_список[Загальна вартість],Контрольний_список[Категорія],Категорія[Категорія]), \"\")","v":{"v":280,"d":"280.00₴"}}]
[null,"Приладдя",{"$f":"IFERROR(SUMIFS(Контрольний_список[Загальна вартість],Контрольний_список[Категорія],Категорія[Категорія]), \"\")","v":{"v":30,"d":"30.00₴"}}]
[null,"Підручники",{"$f":"IFERROR(SUMIFS(Контрольний_список[Загальна вартість],Контрольний_список[Категорія],Категорія[Категорія]), \"\")","v":{"v":55,"d":"55.00₴"}}]

{"sheet":"Список справ","index":2,"n_rows":22,"n_cols":3,"rows_kept":22}
[null,"Список справ"]
[null,"Відстежуйте всі справи, які потрібно виконати до початку навчання."]
[null,"Виконано","Завдання"]
[null,"x","Заповнити всі реєстраційні форми"]
[null,null,"Записатися на перевірку фізичного стану та зору за потреби"]
[null,null,"Перевірити наявність усіх необхідних вакцинацій"]
[null,null,"Отримати від лікаря інструкції з дозуванням усіх необхідних препаратів"]
[null,null,"Перевірити форму одягу в навчальному закладі"]
[null,null,"Отримати список шкільного приладдя"]
[null,null,"Зустрітися з викладачем"]
[null,null,"Дізнатися бажаний спосіб зв’язку з викладачем (по телефону, електронною поштою, записками)"]
[null,null,"Провести дитині екскурсію в навчальному закладі"]
[null,null,"Допомогти дитині запам’ятати номери вашого домашнього й робочого телефону, а також домашню адресу"]
[null,null,"Визначити, як добиратися, призначити безпечне місце зустрічі та подолати визначений шлях"]
[null,null,"Якщо це піший маршрут, пройти його туди й назад зі своєю дитиною кілька разів"]
[null,null,"Якщо дитину підвозитимуть, познайомити її з усіма водіями"]
[null,null,"Якщо це маршрут громадським транспортом, дізнатися час відправлення та зупинки"]
[null,null,"Домовитися про догляд за дитиною/позакласний час"]
[null,null,"Спланувати меню на сніданки, закуски до навчального закладу, обіди із собою та закуски після уроків"]
[null,null,"Дізнатися, де можна перевірити домашнє завдання та розклад"]
[null,null,"Почати дотримуватися режиму сну принаймні за два тижні до початку навчання"]
[null,null,"Підготувати календар усіх заходів і подій у навчальному закладі"]

{"sheet":"Спільний доступ","index":3,"n_rows":4,"n_cols":5,"rows_kept":4}
[null,"Спільний доступ",null,null,"Поділіться цим списком з іншими особами, щоб вони могли зробити свій внесок. Натисніть кнопку \"Спільний доступ\" у верхньому правому куті або натисніть клавішу Alt, а потім – ЗС. Збережіть файл у службі OneDrive і надішліть посилання на нього друзям."]
[null,"Ім’я","Ел. пошта","Спільний доступ надано?"]
[null,"Особа 1","abc@email.com","Так"]
[null,"Особа 2","abc@email.com","Ні"]